[Event "EYCC 2017"]
[Site "Mamaia"]
[Date "2017.09.07"]
[Round "3"]
[White "Biletskiy, Danylo"]
[Black "Creanga, Robert-Ionut"]
[Result "1-0"]
[ECO "A37"]
[WhiteElo "1866"]
[BlackElo "2062"]
[Annotator "NA"]
[PlyCount "101"]
[EventDate "2017.??.??"]
[EventType "swiss"]
[EventCountry "ROU"]
[SourceTitle "playchess.com"]
[Source "ChessBase"]
[SourceQuality "1"]
[TimeControl "40/5400+30:1800+30"]

1. Nf3 c5 {[%emt 0:00:11]} 2. c4 {[%emt 0:00:00]} Nc6 {[%emt 0:00:04]} 3. g3 {[%emt 0:00:00]} g6 {[%emt 0:00:08]} 4. Bg2 {[%emt 0:00:00]} Bg7 {[%emt 0:00:14]} 5. Nc3 {[%emt 0:00:00]} e6 {[%emt 0:00:39]} 6. d3 {[%emt 0:01:19]} Nge7 {[%emt 0:00:23]} 7. Bg5 {[%emt 0:00:38]} h6 {[%emt 0:00:28]} 8. Bd2 {[%emt 0:00:04]} d5 {[%emt 0:01:35]} 9. Qc1 {[%emt 0:01:31]} b6 {[%emt 0:02:11]} 10. Rb1 {[%emt 0:02:37]} Bb7 {[%emt 0:04:35]} 11. O-O {[%emt 0:01:11]} Rc8 {[%emt 0:01:27]} 12. a3 {[%emt 0:04:32]} Qd7 {[%emt 0:11:04]} 13. b4 {[%emt 0:09:27]} Nd4 {[%emt 0:14:27]} 14. bxc5 {[%emt 0:04:06]} Nxf3+ 15. Bxf3 {[%emt 0:00:02]} Rxc5 {[%emt 0:06:06]} 16. Nb5 {[%emt 0:04:42]} Nc8 {[%emt 0:16:25]} 17. Bb4 {[%emt 0:02:01]} Rc6 {[%emt 0:00:21]} 18. a4 {[%emt 0:21:59]} a6 {[%emt 0:07:30]} 19. Na3 {[%emt 0:00:48]} Rc7 {[%emt 0:01:52]} 20. Qd1 {[%emt 0:10:30]} a5 {[%emt 0:12:08]} 21. Bd2 {[%emt 0:00:20]} Bc6 {[%emt 0:02:43]} 22. Nb5 {[%emt 0:02:29]} Bxb5 {[%emt 0:00:25]} 23. Rxb5 {[%emt 0:12:04]} dxc4 {[%emt 0:01:21]} 24. dxc4 {[%emt 0:00:02]} Bd4 {[%emt 0:10:19]} 25. e3 {[%emt 0:00:35]} Bc5 {[%emt 0:00:59]} 26. Bc3 {[%emt 0:01:28]} Qxd1 {[%emt 0:00:17]} 27. Rxd1 {[%emt 0:00:02]} Rg8 {[%emt 0:00:41]} 28. Be5 {[%emt 0:01:14]} Ra7 {[%emt 0:00:11]} 29. Bb8 {[%emt 0:00:45]} Re7 {[%emt 0:01:31]} 30. Bc6+ {[%emt 0:00:09]} Kf8 {[%emt 0:00:04]} 31. Be5 {[%emt 0:02:38]} f6 {[%emt 0:00:23]} 32. Bxf6 Rc7 33. Bd7 {[%emt 0:02:41]} Kf7 {[%emt 0:00:52]} 34. Be5 {[%emt 0:00:33]} Nd6 {[%emt 0:01:11]} 35. Rxc5 {[%emt 0:00:31]} Rxc5 {[%emt 0:00:45]} 36. Bxd6 {[%emt 0:00:35]} Rxc4 {[%emt 0:00:44]} 37. Bb5 {[%emt 0:00:52]} Rcc8 38. Bf4 {[%emt 0:00:25]} Kf6 {[%emt 0:03:09]} 39. e4 {[%emt 0:04:48]} g5 {[%emt 0:00:33]} 40. Be3 {[%emt 0:00:00]} Rb8 {[%emt 0:00:54]} 41. Rd6 {[%emt 0:02:14]} Rgd8 {[%emt 0:00:33]} 42. Rxd8 {[%emt 0:00:31]} Rxd8 {[%emt 0:00:06]} 43. Bxb6 {[%emt 0:00:05]} Ra8 {[%emt 0:00:04]} 44. f3 {[%emt 0:01:35]} Ke5 {[%emt 0:00:33]} 45. Kf2 {[%emt 0:00:13]} Kd6 {[%emt 0:00:05]} 46. Ke3 {[%emt 0:00:07]} e5 {[%emt 0:00:04]} 47. f4 {[%emt 0:01:22]} gxf4+ {[%emt 0:00:28]} 48. gxf4 {[%emt 0:00:02]} exf4+ {[%emt 0:00:10]} 49. Kxf4 {[%emt 0:00:01]} Rf8+ {[%emt 0:00:01]} 50. Ke3 {[%emt 0:00:42]} Ra8 {[%emt 0:00:07]} 51. Kd4 {[%emt 0:00:05]} 1-0

[Event "EYCC 2017"]
[Site "Mamaia"]
[Date "2017.09.07"]
[Round "3"]
[White "Trifoi, Mihaela-Ioana"]
[Black "Yakimova, Mariya"]
[Result "1/2-1/2"]
[ECO "B50"]
[WhiteElo "1864"]
[BlackElo "1736"]
[Annotator "NA"]
[PlyCount "102"]
[EventDate "2017.??.??"]
[EventType "swiss"]
[EventCountry "ROU"]
[SourceTitle "playchess.com"]
[Source "ChessBase"]
[SourceQuality "1"]
[TimeControl "40/5400+30:1800+30"]

1. e4 {[%emt 0:00:00]} c5 {[%emt 0:00:06]} 2. Nf3 {[%emt 0:00:06]} d6 {[%emt 0:00:04]} 3. c3 {[%emt 0:00:08]} Nf6 {[%emt 0:00:07]} 4. h3 {[%emt 0:00:09]} g6 {[%emt 0:00:04]} 5. Bd3 {[%emt 0:00:05]} Bg7 {[%emt 0:00:03]} 6. Bc2 {[%emt 0:00:51]} O-O {[%emt 0:00:32]} 7. O-O {[%emt 0:00:47]} Nc6 {[%emt 0:00:07]} 8. d4 {[%emt 0:01:24]} cxd4 {[%emt 0:00:29]} 9. cxd4 {[%emt 0:01:25]} e5 {[%emt 0:00:07]} 10. Nc3 {[%emt 0:01:25]} exd4 {[%emt 0:22:24]} 11. Nxd4 {[%emt 0:00:42]} Nxd4 {[%emt 0:00:10]} 12. Qxd4 {[%emt 0:00:15]} Be6 {[%emt 0:00:11]} 13. Qb4 {[%emt 0:25:28]} Qc7 {[%emt 0:25:20]} 14. Bf4 {[%emt 0:07:39]} Rfd8 {[%emt 0:01:02]} 15. Rac1 {[%emt 0:00:59]} Qc5 {[%emt 0:06:47]} 16. Qxc5 {[%emt 0:10:17]} dxc5 {[%emt 0:00:01]} 17. Rfd1 {[%emt 0:00:40]} Rxd1+ {[%emt 0:05:02]} 18. Rxd1 {[%emt 0:00:07]} Nh5 {[%emt 0:01:08]} 19. Be3 {[%emt 0:00:33]} Bxc3 {[%emt 0:00:31]} 20. bxc3 {[%emt 0:00:08]} Bxa2 {[%emt 0:00:14]} 21. Bxc5 {[%emt 0:00:27]} Bc4 {[%emt 0:10:01]} 22. Rd7 {[%emt 0:03:14]} b6 {[%emt 0:05:08]} 23. Bd4 {[%emt 0:02:20]} Nf4 {[%emt 0:05:11]} 24. Kh2 {[%emt 0:05:02]} Bb5 {[%emt 0:11:29]} 25. Re7 {[%emt 0:13:43]} Ne6 {[%emt 0:00:36]} 26. Bf6 {[%emt 0:01:52]} Bc4 {[%emt 0:04:52]} 27. Rb7 {[%emt 0:03:49]} Nc5 {[%emt 0:00:41]} 28. Rc7 {[%emt 0:01:06]} a5 {[%emt 0:00:24]} 29. Rc6 {[%emt 0:00:39]} a4 {[%emt 0:00:54]} 30. Bxa4 {[%emt 0:02:52]} Bd3 {[%emt 0:01:05]} 31. Bd1 {[%emt 0:01:17]} Bxe4 {[%emt 0:00:29]} 32. Rxb6 {[%emt 0:00:59]} Nd7 {[%emt 0:00:24]} 33. Rd6 {[%emt 0:00:20]} Nxf6 {[%emt 0:00:03]} 34. Rxf6 {[%emt 0:00:06]} Kg7 {[%emt 0:00:36]} 35. Rf4 {[%emt 0:00:25]} f5 {[%emt 0:00:10]} 36. Bf3 {[%emt 0:01:05]} Bxf3 {[%emt 0:00:50]} 37. Rxf3 {[%emt 0:00:10]} Ra4 {[%emt 0:00:21]} 38. Re3 {[%emt 0:00:25]} Kf6 {[%emt 0:00:23]} 39. g3 {[%emt 0:00:06]} f4 {[%emt 0:01:09]} 40. gxf4 {[%emt 0:00:00]} Rxf4 {[%emt 0:00:02]} 41. Kg3 {[%emt 0:01:58]} Rc4 {[%emt 0:00:16]} 42. Kf3 {[%emt 0:01:44]} h5 {[%emt 0:04:01]} 43. Ke2 {[%emt 0:00:42]} g5 {[%emt 0:12:24]} 44. Rf3+ {[%emt 0:04:57]} Ke5 {[%emt 0:01:56]} 45. Kd3 {[%emt 0:00:21]} Ra4 {[%emt 0:00:49]} 46. Rg3 {[%emt 0:01:05]} Kf4 {[%emt 0:02:31]} 47. c4 {[%emt 0:09:06]} Ra2 {[%emt 0:05:12]} 48. Rg2 {[%emt 0:03:07]} g4 {[%emt 0:05:46]} 49. hxg4 {[%emt 0:00:57]} hxg4 {[%emt 0:00:06]} 50. Kd4 {[%emt 0:00:39]} Kf3 {[%emt 0:01:23]} 51. Rg3+ {[%emt 0:00:08]} Kf4 {[%emt 0:00:08] Ke4+ Ke5+} 1/2-1/2

[Event "EYCC 2017"]
[Site "Mamaia"]
[Date "2017.09.07"]
[Round "3"]
[White "Esadze, Tamari"]
[Black "Rzali, Sabina"]
[Result "1-0"]
[ECO "C07"]
[WhiteElo "1863"]
[BlackElo "1792"]
[Annotator "NA"]
[PlyCount "75"]
[EventDate "2017.??.??"]
[EventType "swiss"]
[EventCountry "ROU"]
[SourceTitle "playchess.com"]
[Source "ChessBase"]
[SourceQuality "1"]
[TimeControl "40/5400+30:1800+30"]

1. e4 {[%emt 0:00:00]} e6 {[%emt 0:00:06]} 2. d4 {[%emt 0:00:00]} d5 {[%emt 0:00:09]} 3. Nd2 {[%emt 0:00:00]} c5 {[%emt 0:00:19]} 4. exd5 {[%emt 0:00:00]} Qxd5 {[%emt 0:00:10]} 5. Ngf3 {[%emt 0:00:13]} cxd4 {[%emt 0:00:14]} 6. Bc4 {[%emt 0:00:09]} Qd6 {[%emt 0:00:07]} 7. O-O {[%emt 0:00:13]} Nf6 {[%emt 0:00:08]} 8. Nb3 {[%emt 0:00:14]} Nc6 {[%emt 0:00:17]} 9. Nbxd4 {[%emt 0:00:28]} Nxd4 {[%emt 0:00:25]} 10. Nxd4 {[%emt 0:00:05]} a6 {[%emt 0:00:08]} 11. Re1 {[%emt 0:02:19]} Be7 {[%emt 0:01:41]} 12. c3 {[%emt 0:07:10]} O-O {[%emt 0:00:30]} 13. Qf3 {[%emt 0:03:43]} Qc7 {[%emt 0:03:51]} 14. Bb3 {[%emt 0:07:46]} Bd6 {[%emt 0:04:36]} 15. h3 {[%emt 0:12:36]} e5 {[%emt 0:02:33]} 16. Nc2 {[%emt 0:10:25]} Bd7 {[%emt 0:08:44]} 17. Bg5 {[%emt 0:04:47]} Bc6 {[%emt 0:02:50]} 18. Qf5 {[%emt 0:08:59]} Nd7 {[%emt 0:06:24]} 19. Ne3 {[%emt 0:04:43]} g6 {[%emt 0:06:13]} 20. Qg4 {[%emt 0:03:40]} h5 {[%emt 0:05:00]} 21. Qh4 {[%emt 0:02:32]} Kg7 {[%emt 0:04:11]} 22. Nf5+ {[%emt 0:06:23]} Kh7 {[%emt 0:12:39]} 23. Nxd6 {[%emt 0:02:20]} Qxd6 {[%emt 0:05:28]} 24. Be7 {[%emt 0:00:07]} Qb8 {[%emt 0:01:47]} 25. Bxf8 {[%emt 0:00:39]} Qxf8 {[%emt 0:00:08]} 26. Rad1 {[%emt 0:00:58]} Re8 {[%emt 0:00:48]} 27. Bd5 {[%emt 0:01:46]} Bxd5 {[%emt 0:07:06]} 28. Rxd5 {[%emt 0:00:06]} Re7 {[%emt 0:00:14]} 29. Red1 {[%emt 0:01:44]} Qe8 {[%emt 0:00:38]} 30. Qb4 {[%emt 0:01:45]} b5 {[%emt 0:04:45]} 31. Rd6 {[%emt 0:03:46]} f5 {[%emt 0:02:52]} 32. Rxa6 {[%emt 0:00:24]} Nf8 {[%emt 0:01:01]} 33. Ra8 {[%emt 0:01:33]} Qf7 {[%emt 0:01:27]} 34. Rxf8 {[%emt 0:00:28]} Qxf8 {[%emt 0:00:17]} 35. Rd7 {[%emt 0:00:04]} Kh6 {[%emt 0:00:28]} 36. Qxe7 {[%emt 0:00:08]} Qg8 {[%emt 0:00:22]} 37. h4 {[%emt 0:00:17]} g5 {[%emt 0:00:23]} 38. Qf6+ {[%emt 0:00:11]} 1-0

[Event "EYCC 2017"]
[Site "Mamaia"]
[Date "2017.09.07"]
[Round "3"]
[White "Posuniak, Weronika"]
[Black "Sieber, Fiona"]
[Result "1-0"]
[ECO "E32"]
[WhiteElo "1856"]
[BlackElo "2248"]
[Annotator "NA"]
[PlyCount "73"]
[EventDate "2017.??.??"]
[EventType "swiss"]
[EventCountry "ROU"]
[SourceTitle "playchess.com"]
[Source "ChessBase"]
[SourceQuality "1"]
[TimeControl "40/5400+30:1800+30"]

1. d4 {[%emt 0:00:00]} Nf6 {[%emt 0:00:09]} 2. c4 {[%emt 0:00:00]} e6 {[%emt 0:00:03]} 3. Nc3 {[%emt 0:00:00]} Bb4 {[%emt 0:00:05]} 4. Qc2 {[%emt 0:00:00]} O-O {[%emt 0:00:05]} 5. a3 {[%emt 0:00:09]} Bxc3+ {[%emt 0:00:07]} 6. Qxc3 {[%emt 0:00:04]} b5 {[%emt 0:00:37]} 7. cxb5 {[%emt 0:01:59]} a6 {[%emt 0:01:38]} 8. b6 {[%emt 0:03:32]} cxb6 {[%emt 0:00:57]} 9. Bg5 {[%emt 0:00:31]} Bb7 {[%emt 0:06:07]} 10. Rc1 {[%emt 0:02:35]} h6 {[%emt 0:05:06]} 11. Bh4 {[%emt 0:01:39]} Nc6 {[%emt 0:22:48]} 12. e3 {[%emt 0:03:57]} Rc8 {[%emt 0:01:47]} 13. Qd2 {[%emt 0:03:14]} Qe7 {[%emt 0:11:56]} 14. Nf3 {[%emt 0:08:05]} Na5 {[%emt 0:01:43]} 15. Rxc8 {[%emt 0:03:08]} Rxc8 {[%emt 0:00:01]} 16. Be2 {[%emt 0:02:19]} Nb3 {[%emt 0:12:26]} 17. Qd3 {[%emt 0:03:03]} Nc1 {[%emt 0:03:22]} 18. Qd2 {[%emt 0:02:57]} Be4 {[%emt 0:07:53]} 19. Bd1 {[%emt 0:05:38]} g5 {[%emt 0:09:17]} 20. Nxg5 {[%emt 0:07:59]} hxg5 {[%emt 0:00:08]} 21. Bxg5 {[%emt 0:00:04]} Nd3+ {[%emt 0:01:38]} 22. Ke2 {[%emt 0:01:05]} Bg6 {[%emt 0:04:46]} 23. f3 {[%emt 0:03:08]} e5 {[%emt 0:01:59]} 24. e4 {[%emt 0:05:18]} Nc1+ {[%emt 0:00:19]} 25. Kf2 {[%emt 0:01:49]} Bxe4 {[%emt 0:01:28]} 26. Bxf6 {[%emt 0:03:37]} Qxf6 {[%emt 0:00:13]} 27. dxe5 {[%emt 0:00:27]} Qf5 {[%emt 0:04:52]} 28. g4 {[%emt 0:00:50]} Qxe5 {[%emt 0:00:12]} 29. fxe4 {[%emt 0:00:23]} Rc6 {[%emt 0:01:06]} 30. Kg2 {[%emt 0:09:08]} Nb3 {[%emt 0:02:10]} 31. Bxb3 {[%emt 0:02:34]} Qxe4+ {[%emt 0:00:01]} 32. Kg1 {[%emt 0:01:55]} Kf8 {[%emt 0:00:58]} 33. Qb4+ {[%emt 0:03:31]} Qxb4 {[%emt 0:00:25]} 34. axb4 {[%emt 0:00:06]} a5 {[%emt 0:00:31]} 35. bxa5 {[%emt 0:00:40]} bxa5 {[%emt 0:00:02]} 36. Ba4 {[%emt 0:01:22]} Rb6 {[%emt 0:01:00]} 37. b3 {[%emt 0:00:39]} 1-0

[Event "EYCC 2017"]
[Site "Mamaia"]
[Date "2017.09.07"]
[Round "3"]
[White "Pawicka, Magdalena"]
[Black "von Beckh, Frieda"]
[Result "1-0"]
[ECO "B01"]
[WhiteElo "1826"]
[BlackElo "1368"]
[Annotator "NA"]
[PlyCount "129"]
[EventDate "2017.??.??"]
[EventType "swiss"]
[EventCountry "ROU"]
[SourceTitle "playchess.com"]
[Source "ChessBase"]
[SourceQuality "1"]
[TimeControl "40/5400+30:1800+30"]

1. e4 {[%emt 0:00:00]} d5 {[%emt 0:00:07]} 2. exd5 {[%emt 0:00:00]} Nf6 {[%emt 0:00:06]} 3. Bb5+ {[%emt 0:00:32]} Bd7 {[%emt 0:01:49]} 4. Be2 {[%emt 0:00:40]} Bf5 {[%emt 0:00:53]} 5. d4 {[%emt 0:02:33]} Nxd5 {[%emt 0:00:13]} 6. Nf3 {[%emt 0:01:53]} e6 {[%emt 0:01:19]} 7. O-O {[%emt 0:03:00]} Be7 {[%emt 0:00:58]} 8. a3 {[%emt 0:00:59]} O-O {[%emt 0:00:26]} 9. c4 {[%emt 0:03:14]} Nb6 {[%emt 0:00:44]} 10. Nc3 {[%emt 0:02:22]} Nc6 {[%emt 0:01:30]} 11. Be3 {[%emt 0:01:00]} Bf6 {[%emt 0:01:14]} 12. Rc1 {[%emt 0:02:04]} Qe7 {[%emt 0:02:29]} 13. Qb3 {[%emt 0:15:14]} Rad8 {[%emt 0:03:14]} 14. Rfd1 {[%emt 0:01:40]} a6 {[%emt 0:03:06]} 15. Rd2 {[%emt 0:03:45]} Na5 {[%emt 0:00:54]} 16. Qa2 {[%emt 0:00:42]} Bg4 {[%emt 0:02:09]} 17. Ne4 {[%emt 0:05:43]} Rd7 {[%emt 0:01:44]} 18. Nxf6+ {[%emt 0:02:52]} Qxf6 {[%emt 0:00:37]} 19. Ne5 {[%emt 0:01:12]} Bxe2 {[%emt 0:01:30]} 20. Nxd7 {[%emt 0:00:18]} Nxd7 {[%emt 0:00:25]} 21. Rxe2 {[%emt 0:00:24]} Nb6 {[%emt 0:02:41]} 22. b4 {[%emt 0:03:40]} Naxc4 {[%emt 0:04:00]} 23. Rxc4 {[%emt 0:00:11]} Nxc4 {[%emt 0:00:23]} 24. Qxc4 {[%emt 0:00:06]} c6 {[%emt 0:02:31]} 25. Re1 {[%emt 0:02:48]} Rd8 {[%emt 0:01:20]} 26. Qc5 {[%emt 0:00:34]} Rd5 {[%emt 0:00:56]} 27. Qa7 {[%emt 0:02:47]} Qe7 {[%emt 0:00:44]} 28. Rc1 {[%emt 0:01:04]} h6 {[%emt 0:01:28]} 29. Rxc6 {[%emt 0:04:39]} Qd7 {[%emt 0:00:57]} 30. Rc1 {[%emt 0:01:53]} e5 {[%emt 0:00:40]} 31. Qb8+ {[%emt 0:02:24]} Kh7 {[%emt 0:00:58]} 32. Qc8 {[%emt 0:02:49]} Qd6 {[%emt 0:02:09]} 33. Qf5+ {[%emt 0:00:16]} Qg6 {[%emt 0:01:04]} 34. Qxg6+ {[%emt 0:00:10]} Kxg6 {[%emt 0:00:21]} 35. dxe5 {[%emt 0:00:24]} Rxe5 {[%emt 0:00:11]} 36. Kf1 {[%emt 0:00:17]} Rd5 {[%emt 0:01:07]} 37. Ke2 {[%emt 0:00:15]} Kf5 {[%emt 0:01:13]} 38. Rc5 {[%emt 0:00:21]} Ke6 {[%emt 0:00:31]} 39. Rxd5 {[%emt 0:00:04]} Kxd5 {[%emt 0:00:34]} 40. Kd3 {[%emt 0:00:00]} b5 {[%emt 0:01:15]} 41. Bd4 {[%emt 0:00:20]} g6 {[%emt 0:00:29]} 42. Bg7 {[%emt 0:00:07]} h5 {[%emt 0:00:20]} 43. Bf6 {[%emt 0:00:08]} Ke6 {[%emt 0:01:05]} 44. Bh4 {[%emt 0:00:03]} Ke5 {[%emt 0:01:37]} 45. Bg3+ {[%emt 0:00:17]} Kd5 {[%emt 0:01:10]} 46. f4 {[%emt 0:00:14]} f5 {[%emt 0:01:35]} 47. Bh4 {[%emt 0:00:10]} Ke6 {[%emt 0:01:17]} 48. Kd4 {[%emt 0:00:11]} Kd6 {[%emt 0:01:08]} 49. Bf6 {[%emt 0:00:06]} Ke6 {[%emt 0:00:54]} 50. Be5 {[%emt 0:00:05]} Kd7 {[%emt 0:01:03]} 51. Kc5 {[%emt 0:00:05]} Ke6 {[%emt 0:00:44]} 52. Kb6 {[%emt 0:00:30]} Kd7 {[%emt 0:02:03]} 53. Kxa6 {[%emt 0:00:06]} Kc6 {[%emt 0:00:44]} 54. Bf6 {[%emt 0:00:03]} Kc7 {[%emt 0:01:15]} 55. Kxb5 {[%emt 0:00:04]} Kb7 {[%emt 0:00:31]} 56. a4 {[%emt 0:00:05]} Ka7 {[%emt 0:01:13]} 57. a5 {[%emt 0:00:01]} Kb7 {[%emt 0:00:34]} 58. Kc5 {[%emt 0:00:02]} Ka6 {[%emt 0:00:21]} 59. b5+ {[%emt 0:00:07]} Ka7 {[%emt 0:01:51]} 60. b6+ {[%emt 0:00:06]} Kb7 {[%emt 0:00:36]} 61. Kb5 {[%emt 0:00:27]} Kb8 {[%emt 0:00:36]} 62. a6 {[%emt 0:00:34]} Ka8 {[%emt 0:00:52]} 63. b7+ {[%emt 0:00:05]} Kb8 {[%emt 0:01:08]} 64. Be5+ {[%emt 0:00:06]} Ka7 {[%emt 0:00:45]} 65. b8=Q# {[%emt 0:00:08]} 1-0

[Event "EYCC 2017"]
[Site "Mamaia"]
[Date "2017.09.07"]
[Round "3"]
[White "Pidluznij, Gleb"]
[Black "Ivanov, Svetlen"]
[Result "1/2-1/2"]
[ECO "B22"]
[WhiteElo "1824"]
[BlackElo "1638"]
[Annotator "NA"]
[PlyCount "92"]
[EventDate "2017.??.??"]
[EventType "swiss"]
[EventCountry "ROU"]
[SourceTitle "playchess.com"]
[Source "ChessBase"]
[SourceQuality "1"]
[TimeControl "40/5400+30:1800+30"]

1. e4 {[%emt 0:00:00]} c5 {[%emt 0:00:12]} 2. c3 {[%emt 0:00:00]} Nf6 {[%emt 0:00:21]} 3. e5 {[%emt 0:00:00]} Nd5 {[%emt 0:00:14]} 4. Nf3 {[%emt 0:00:32]} e6 {[%emt 0:00:41]} 5. Bc4 {[%emt 0:07:35]} d6 $11 {[%emt 0:04:01] LiveBook: 556 Games} 6. d4 {[%emt 0:12:14]} cxd4 {[%emt 0:00:17]} 7. cxd4 {[%emt 0:01:10]} Be7 {[%emt 0:02:10]} 8. O-O {[%emt 0:01:00]} O-O {[%emt 0:01:20]} 9. Qe2 {[%emt 0:00:38]} Bd7 {[%emt 0:01:45]} 10. Re1 {[%emt 0:00:19]} Bc6 {[%emt 0:00:38]} 11. Nc3 {[%emt 0:01:53]} Nxc3 {[%emt 0:02:50]} 12. bxc3 {[%emt 0:00:08]} Nd7 {[%emt 0:00:32]} 13. Bf4 {[%emt 0:06:55]} dxe5 {[%emt 0:06:17]} 14. dxe5 {[%emt 0:04:03]} Nb6 {[%emt 0:14:31]} 15. Bd3 {[%emt 0:01:31]} Qc7 {[%emt 0:10:16]} 16. Nd4 {[%emt 0:01:39]} Bd5 {[%emt 0:05:04]} 17. Rac1 {[%emt 0:02:40]} Bc4 {[%emt 0:02:38]} 18. Red1 {[%emt 0:12:51]} a6 {[%emt 0:02:41]} 19. Qh5 {[%emt 0:04:56]} g6 {[%emt 0:03:33]} 20. Qe2 {[%emt 0:03:23]} Rfd8 {[%emt 0:03:40]} 21. Bxc4 {[%emt 0:05:30]} Nxc4 {[%emt 0:06:49]} 22. Nf3 {[%emt 0:00:30]} b5 {[%emt 0:02:10]} 23. Rd4 {[%emt 0:05:52]} Bc5 {[%emt 0:07:48]} 24. Rdd1 {[%emt 0:00:51]} Be7 {[%emt 0:00:44]} 25. Rd4 {[%emt 0:00:14]} Bc5 {[%emt 0:00:02]} 26. Rdd1 {[%emt 0:00:02]} Be7 {[%emt 0:01:02]} 27. Qc2 {[%emt 0:00:30]} Rxd1+ {[%emt 0:01:00]} 28. Rxd1 {[%emt 0:00:19]} Rd8 {[%emt 0:00:35]} 29. Rd4 {[%emt 0:04:23]} Bc5 {[%emt 0:00:26]} 30. Rd3 {[%emt 0:01:22]} Qb6 {[%emt 0:00:52]} 31. Bg3 {[%emt 0:00:53]} Be7 {[%emt 0:03:40]} 32. h3 {[%emt 0:02:18]} Qc7 {[%emt 0:01:47]} 33. Kh2 {[%emt 0:02:39]} Nb6 {[%emt 0:01:54]} 34. Nd4 {[%emt 0:01:33]} Bc5 {[%emt 0:00:25]} 35. Nf3 {[%emt 0:00:49]} Be7 {[%emt 0:00:07]} 36. Nd4 {[%emt 0:00:52]} Qc4 {[%emt 0:00:54]} 37. Rd2 {[%emt 0:03:52]} Nd5 {[%emt 0:01:21]} 38. Ne2 {[%emt 0:00:25]} Rc8 {[%emt 0:00:27]} 39. Rd4 {[%emt 0:01:48]} Qc6 {[%emt 0:00:41]} 40. a4 {[%emt 0:00:00]} Bc5 41. Re4 {[%emt 0:04:24]} Bb6 {[%emt 0:02:54]} 42. axb5 {[%emt 0:07:27]} axb5 {[%emt 0:00:20]} 43. Qb1 {[%emt 0:01:34]} Qc5 {[%emt 0:09:52]} 44. f3 {[%emt 0:05:42]} Nxc3 45. Nxc3 Qxc3 46. Qxb5 Qc5 {[%emt 0:06:31]} 1/2-1/2

[Event "EYCC 2017"]
[Site "Mamaia"]
[Date "2017.09.07"]
[Round "3"]
[White "Hajiyeva, Laman"]
[Black "Berdnyk, Mariia"]
[Result "0-1"]
[ECO "E12"]
[WhiteElo "1818"]
[BlackElo "2055"]
[Annotator "NA"]
[PlyCount "154"]
[EventDate "2017.??.??"]
[EventType "swiss"]
[EventCountry "ROU"]
[SourceTitle "playchess.com"]
[Source "ChessBase"]
[SourceQuality "1"]
[TimeControl "40/5400+30:1800+30"]

1. d4 {[%emt 0:00:00]} Nf6 {[%emt 0:00:05]} 2. c4 {[%emt 0:00:00]} e6 {[%emt 0:00:03]} 3. Nf3 {[%emt 0:00:00]} b6 {[%emt 0:00:03]} 4. a3 {[%emt 0:00:00]} Ba6 {[%emt 0:00:04]} 5. Qc2 {[%emt 0:00:00]} Bb7 {[%emt 0:00:04]} 6. Nc3 {[%emt 0:00:00]} c5 {[%emt 0:00:04]} 7. e4 {[%emt 0:00:00]} cxd4 {[%emt 0:00:07]} 8. Nxd4 {[%emt 0:00:01]} Bc5 {[%emt 0:00:04]} 9. Nb3 {[%emt 0:00:03]} Nc6 {[%emt 0:00:04]} 10. Bg5 {[%emt 0:00:09]} h6 {[%emt 0:00:38]} 11. Bh4 {[%emt 0:00:03]} Nd4 {[%emt 0:00:29]} 12. Nxd4 {[%emt 0:00:05]} Bxd4 {[%emt 0:00:04]} 13. Bd3 {[%emt 0:00:10]} Be5 {[%emt 0:01:17]} 14. Bg3 {[%emt 0:00:39]} Qc7 {[%emt 0:02:20]} 15. O-O-O {[%emt 0:00:50]} O-O {[%emt 0:09:45]} 16. Kb1 {[%emt 0:06:47]} Rfd8 {[%emt 0:04:30]} 17. Rhe1 {[%emt 0:05:47]} Bxg3 {[%emt 0:15:41]} 18. hxg3 {[%emt 0:00:18]} d6 {[%emt 0:07:01]} 19. Nb5 {[%emt 0:09:56]} Qc5 {[%emt 0:02:21]} 20. b4 {[%emt 0:09:53]} Qc8 {[%emt 0:04:03]} 21. f4 {[%emt 0:11:28]} a5 {[%emt 0:05:19]} 22. e5 {[%emt 0:03:11]} dxe5 {[%emt 0:03:39]} 23. fxe5 {[%emt 0:00:09]} Ne8 {[%emt 0:01:08]} 24. bxa5 {[%emt 0:03:10]} Rxa5 {[%emt 0:00:41]} 25. g4 {[%emt 0:10:49]} Bc6 {[%emt 0:04:18]} 26. g5 {[%emt 0:22:10]} Bxb5 {[%emt 0:02:18]} 27. cxb5 {[%emt 0:00:28]} Qxc2+ {[%emt 0:00:52]} 28. Kxc2 {[%emt 0:04:04]} Rc8+ {[%emt 0:01:11]} 29. Kb3 {[%emt 0:00:22]} Rca8 {[%emt 0:04:23]} 30. Ra1 {[%emt 0:00:31]} hxg5 {[%emt 0:01:32]} 31. Rec1 {[%emt 0:02:17]} Rd8 {[%emt 0:04:26]} 32. Bf1 {[%emt 0:00:19]} Ra7 {[%emt 0:02:02]} 33. Rc6 {[%emt 0:00:58]} Rb7 {[%emt 0:00:07]} 34. Rac1 {[%emt 0:02:07]} Kf8 {[%emt 0:03:10]} 35. a4 {[%emt 0:01:09]} Ke7 {[%emt 0:02:09]} 36. a5 {[%emt 0:01:23]} bxa5 {[%emt 0:00:13]} 37. Ka4 {[%emt 0:00:06]} Ra8 {[%emt 0:09:32]} 38. b6 {[%emt 0:01:17]} Rd7 {[%emt 0:01:49]} 39. R1c5 {[%emt 0:03:51]} Rd4+ {[%emt 0:02:19]} 40. Ka3 {[%emt 0:00:00]} Rb4 {[%emt 0:04:47]} 41. Rb5 {[%emt 0:03:31]} Kd7 {[%emt 0:05:14]} 42. Rxa5 {[%emt 0:07:32]} Rb8 {[%emt 0:04:53]} 43. Kxb4 {[%emt 0:10:36]} Kxc6 {[%emt 0:00:11]} 44. Rc5+ {[%emt 0:05:06]} Kxb6 {[%emt 0:00:37]} 45. Rb5+ {[%emt 0:00:25]} Kc7 {[%emt 0:01:02]} 46. Rxb8 {[%emt 0:00:18]} Kxb8 {[%emt 0:00:01]} 47. Kc5 {[%emt 0:00:06]} Kc7 {[%emt 0:01:28]} 48. Be2 {[%emt 0:00:50]} Kd7 {[%emt 0:00:35]} 49. Bh5 {[%emt 0:00:40]} Ke7 {[%emt 0:00:49]} 50. Be2 {[%emt 0:00:52]} Nc7 {[%emt 0:03:15]} 51. Bc4 {[%emt 0:00:17]} f6 {[%emt 0:01:01]} 52. Kd4 {[%emt 0:00:56]} Kd7 {[%emt 0:01:39]} 53. g4 {[%emt 0:02:21]} Kc6 {[%emt 0:00:57]} 54. Ke4 {[%emt 0:02:05]} Nd5 {[%emt 0:02:06]} 55. Kd4 {[%emt 0:00:31]} Nf4 {[%emt 0:00:13]} 56. Ke4 {[%emt 0:00:21]} Kd7 {[%emt 0:00:28]} 57. Bb5+ {[%emt 0:01:18]} Ke7 {[%emt 0:00:12]} 58. Bc4 {[%emt 0:00:15]} Ng6 {[%emt 0:00:14]} 59. exf6+ {[%emt 0:00:04]} gxf6 {[%emt 0:00:09]} 60. Be2 {[%emt 0:00:40]} Ne5 {[%emt 0:00:11]} 61. Kd4 {[%emt 0:00:53]} Kd6 {[%emt 0:00:37]} 62. Ke4 {[%emt 0:00:29]} Kc5 {[%emt 0:00:32]} 63. Bd1 {[%emt 0:00:38]} Nc4 {[%emt 0:01:13]} 64. Be2 {[%emt 0:00:28]} Nd6+ {[%emt 0:00:22]} 65. Kf3 {[%emt 0:00:29]} Kd4 {[%emt 0:00:22]} 66. Bd1 {[%emt 0:00:44]} Nc4 {[%emt 0:02:57]} 67. Bc2 {[%emt 0:01:08]} Ne5+ {[%emt 0:01:03]} 68. Kg3 {[%emt 0:00:05]} Nd3 {[%emt 0:00:14]} 69. Bd1 {[%emt 0:01:37]} Ke3 {[%emt 0:00:36]} 70. Bf3 {[%emt 0:01:24]} Nc5 {[%emt 0:00:21]} 71. Bd1 {[%emt 0:00:17]} Ne4+ {[%emt 0:00:07]} 72. Kg2 {[%emt 0:00:05]} Kf4 {[%emt 0:00:32]} 73. Be2 {[%emt 0:00:13]} e5 {[%emt 0:01:19]} 74. Bf3 {[%emt 0:00:14]} Nc3 {[%emt 0:00:18]} 75. Kf2 {[%emt 0:00:22]} e4 {[%emt 0:00:20]} 76. Bg2 {[%emt 0:00:05]} Nd1+ {[%emt 0:00:27]} 77. Ke2 {[%emt 0:00:20]} Ne3 {[%emt 0:00:05]} 0-1